fUST/lending_fUST_20241011
["ID","MTS","AMOUNT","RATE_DAILY","PERIOD"]
[340120939,1728630654481,-500.0,0.00063013,120]
[340120940,1728630654491,-500.0,0.00063013,120]
[340120941,1728630654500,-748.85,0.00063013,120]
[340120942,1728630654511,-1358.21,0.00063013,120]
[340120943,1728630654520,-500.0,0.00063013,120]
[340120944,1728630654530,-1932.27,0.00063013,120]
[340120945,1728630654540,-188.28412819,0.00063013,120]
[340120946,1728630654549,-500.0,0.00063013,120]
[340120947,1728630654559,-746.7,0.00063013,120]
[340120948,1728630654568,-183.25280377,0.00063013,120]
[340120949,1728630654578,-690.38,0.00063013,120]
[340120950,1728630654587,-1417.72,0.00063013,120]
[340120951,1728630654598,-516.88046027,0.00063013,120]
[340120952,1728630654657,-521.19515388,0.00063013,120]
[340120953,1728630654674,-632.18180594,0.00063013,120]
[340120954,1728630654685,-490.55916387,0.00063013,120]
[340120955,1728630654696,-500.0,0.00063013,120]
[340120956,1728630654706,-500.0,0.00063013,120]
[340120957,1728630654717,-500.0,0.00063013,120]
[340120958,1728630654730,-2183.44,0.00063013,120]
[340120959,1728630654741,-559.01344057,0.00063013,120]
[340120960,1728630654753,-500.0,0.00063013,120]
[340120961,1728630654763,-558.97,0.00063013,120]
[340120962,1728630654774,-500.0,0.00063013,120]
[340120963,1728630654784,-500.0,0.00063013,120]
[340120964,1728630654794,-500.0,0.00063013,120]
[340120965,1728630654803,-500.0,0.00063013,120]
[340120966,1728630654813,-500.0,0.00063013,120]
[340120967,1728630654824,-1914.69,0.00063013,120]
[340120968,1728630654833,-2189.2,0.00063013,120]
[340120969,1728630654843,-1059.16,0.00063013,120]
[340120970,1728630654852,-500.0,0.00063013,120]
[340120971,1728630654862,-500.0,0.00063013,120]
[340120972,1728630654872,-500.0,0.00063013,120]
[340120973,1728630654882,-500.0,0.00063013,120]
[340120974,1728630654893,-500.0,0.00063013,120]
[340120975,1728630654903,-500.0,0.00063013,120]
[340120976,1728630654915,-500.0,0.00063013,30]
[340120977,1728630654925,-1638.11,0.00063013,120]
[340120978,1728630654936,-2460.61,0.00063013,120]
[340120979,1728630654946,-761.71,0.00063013,120]
[340120980,1728630654958,-500.0,0.00063013,120]
[340120981,1728630654968,-580.61530205,0.00063013,120]
[340120982,1728630654978,-500.0,0.00063013,2]
[340120983,1728630654988,-500.0,0.00063013,120]
[340120984,1728630654997,-500.0,0.00063013,120]
[340120985,1728630655007,-163.12411746,0.00063013,120]
[340120986,1728630655017,-609.01395115,0.00063013,120]
[340120987,1728630655027,-300.0,0.00063013,120]
[340120988,1728630655037,-500.0,0.00063013,120]
[340120989,1728630655047,-500.0,0.00063013,120]
[340120990,1728630655057,-500.0,0.00063013,120]
[340120991,1728630655066,-203.95775697,0.00063013,120]
[340120992,1728630655083,-500.0,0.00063013,120]
[340120993,1728630655094,-321.11654062,0.00063013,120]
[340120994,1728630655104,-3378.04,0.00063013,120]
[340120995,1728630655113,-2956.22,0.00063013,18]
[340120996,1728630655123,-500.0,0.00063013,30]
[340120997,1728630655135,-794.83,0.00063013,120]
[340120998,1728630655145,-500.0,0.00063013,7]
[340120999,1728630655155,-500.0,0.00063013,120]
[340121000,1728630655167,-5039.97,0.00063013,120]
[340121001,1728630655178,-503.32339742,0.00063013,7]
[340121002,1728630655188,-500.0,0.00063013,2]
[340121003,1728630655199,-500.0,0.00063013,5]
[340121004,1728630655209,-500.0,0.00063013,7]
[340121005,1728630655220,-500.0,0.00063013,120]
[340121006,1728630655232,-1000.0,0.00063013,120]
[340121007,1728630655243,-500.0,0.00063013,120]
[340121008,1728630655254,-200.0,0.00063013,120]
[340121009,1728630655265,-500.0,0.00063013,120]
[340121010,1728630655277,-2873.27,0.00063013,120]
[340121011,1728630655287,-888.0,0.00063013,120]
[340121012,1728630655299,-711.759636,0.00063013,120]
[340121013,1728630655310,-1000.0,0.00063013,120]
[340121014,1728630655320,-711.759636,0.00063013,120]
[340121015,1728630655332,-500.0,0.00063013,2]
[340121016,1728630655341,-958.81,0.00063013,120]
[340121017,1728630655353,-500.0,0.00063013,5]
[340121018,1728630655364,-500.0,0.00063013,5]
[340121019,1728630655373,-500.0,0.00063013,5]
[340121020,1728630655383,-500.0,0.00063013,5]
[340121021,1728630655393,-500.0,0.00063013,5]
[340121022,1728630655403,-500.0,0.00063013,5]
[340121023,1728630655414,-500.0,0.00063013,5]
[340121024,1728630655424,-500.0,0.00063013,5]
[340121025,1728630655434,-500.0,0.00063013,5]
[340121026,1728630655444,-507.09232811,0.00063013,120]
[340121027,1728630655454,-500.0,0.00063013,5]
[340121028,1728630655464,-500.0,0.00063013,5]
[340121029,1728630655474,-500.0,0.00063013,5]
[340121030,1728630655487,-500.0,0.00063013,5]
[340121031,1728630655499,-500.0,0.00063013,5]
[340121032,1728630655509,-271.04849707,0.00063013,5]
[340121033,1728630655521,-500.0,0.00063013,120]
[340121034,1728630655531,-501.24950551,0.00063013,120]
[340121035,1728630655542,-518.64445551,0.00063013,120]
[340121036,1728630655551,-500.0,0.00063013,30]
[340121037,1728630655560,-1000.0,0.00063013,5]
[340121038,1728630655569,-500.0,0.00063013,120]
[340121039,1728630655583,-504.10166323,0.00063013,120]
[340121040,1728630655593,-168.49557937,0.00063013,120]
[340121041,1728630655603,-500.0,0.00063013,120]
[340121042,1728630655613,-1565.69071272,0.00063013,120]
[340121043,1728630655623,-300.0,0.00063013,120]
[340121044,1728630655632,-777.64,0.00063013,120]
[340121045,1728630655642,-151.0,0.00063013,120]
[340121046,1728630655651,-8750.0,0.00063013,120]
[340121047,1728630655662,-500.0,0.00063013,120]
[340121048,1728630655672,-522.81,0.00063013,120]
[340121049,1728630655683,-512.01495447,0.00063013,120]
[340121050,1728630655693,-500.0,0.00063013,120]
[340121051,1728630655753,-500.0,0.00063013,2]
[340121052,1728630655763,-151.0,0.00063013,120]
[340121053,1728630655773,-509.46252082,0.00063013,120]
[340121054,1728630655784,-500.0,0.00063287,120]
[340121055,1728630655795,-326.22368888,0.00063287,120]
[340121056,1728630655806,-500.0,0.00063287,120]
[340121057,1728630655817,-845.14,0.00063287,120]
[340121058,1728630655829,-1317.67,0.00063287,120]
[340121059,1728630655838,-500.0,0.00063287,120]
[340121060,1728630655847,-1566.82,0.00063287,120]
[340121061,1728630655856,-530.83565614,0.00063287,120]
[340121062,1728630655867,-1563.53,0.00063287,7]
[340121063,1728630655876,-500.0,0.00063287,120]
[340121064,1728630655888,-500.0,0.00063287,10]
[340121065,1728630655899,-500.0,0.00063287,120]
[340121066,1728630655910,-500.0,0.00063287,120]
[340121067,1728630655920,-500.0,0.00063287,120]
[340121068,1728630655930,-500.0,0.00063287,120]
[340121069,1728630655941,-500.0,0.00063287,120]
[340121070,1728630655950,-500.0,0.00063287,120]
[340121071,1728630655960,-500.0,0.00063287,120]
[340121072,1728630655970,-1471.82,0.00063287,120]
[340121073,1728630655979,-430.59727989,0.00063287,120]
[340121074,1728630655990,-500.0,0.00063287,120]
[340121075,1728630656002,-500.0,0.00063287,120]
[340121076,1728630656014,-500.0,0.00063287,120]
[340121077,1728630656024,-188.516468,0.00063287,120]
[340121078,1728630656035,-500.0,0.00063287,120]
[340121079,1728630656044,-500.0,0.00063287,120]
[340121080,1728630656054,-500.0,0.00063287,120]
[340121081,1728630656064,-500.0,0.00063287,120]
[340121082,1728630656076,-517.27787079,0.00063287,120]
[340121083,1728630656087,-534.44,0.00063287,120]
[340121084,1728630656097,-502.71354708,0.00063287,120]
[340121085,1728630656108,-369.42149466,0.00063287,120]
[340121086,1728630656118,-500.0,0.00063287,120]
[340121087,1728630656128,-500.0,0.00063287,120]
[340121088,1728630656140,-500.0,0.00063287,120]
[340121089,1728630656150,-644.75130575,0.00063287,120]
[340121090,1728630656161,-500.0,0.00063287,120]
[340121091,1728630656172,-500.0,0.00063287,120]
[340121092,1728630656183,-500.0,0.00063287,120]
[340121093,1728630656194,-681.48,0.00063287,120]
[340121094,1728630656205,-500.0,0.00063287,2]
[340121095,1728630656217,-500.0,0.00063287,120]
[340121096,1728630656227,-500.0,0.00063287,120]
[340121097,1728630656236,-500.0,0.00063287,120]
[340121098,1728630656247,-500.0,0.00063287,120]
[340121099,1728630656259,-1399.61,0.00063287,120]
[340121100,1728630656271,-650.96,0.00063287,2]
[340121101,1728630656281,-500.0,0.00063287,120]
[340121102,1728630656291,-500.0,0.00063287,120]
[340121103,1728630656303,-1996.76,0.00063287,120]
[340121104,1728630656314,-500.0,0.00063287,120]
[340121105,1728630656325,-1351.2,0.00063287,2]
[340121106,1728630656334,-198.28394868,0.00063287,120]
[340121107,1728630656346,-2436.48,0.00063287,30]
[340121108,1728630656358,-500.0,0.00063287,120]
[340121109,1728630656369,-500.0,0.00063287,120]
[340121110,1728630656380,-683.8,0.00063287,120]
[340121111,1728630656390,-500.0,0.00063287,120]
[340121112,1728630656399,-500.0,0.00063287,120]
[340121113,1728630656408,-500.0,0.00063287,120]
[340121114,1728630656418,-500.0,0.00063287,120]
[340121115,1728630656428,-500.0,0.00063287,120]
[340121116,1728630656438,-500.0,0.00063287,120]
[340121117,1728630656449,-500.0,0.00063287,120]
[340121118,1728630656458,-1950.95,0.00063287,120]
[340121119,1728630656467,-500.0,0.00063287,120]
[340121120,1728630656476,-500.0,0.00063287,120]
[340121121,1728630656486,-5150.52,0.00063287,120]
[340121122,1728630656495,-500.0,0.00063287,120]
[340121123,1728630656505,-500.0,0.00063287,120]
[340121124,1728630656515,-500.0,0.00063287,120]
[340121125,1728630656527,-500.0,0.00063287,120]
[340121126,1728630656538,-442.44672621,0.00063287,120]
[340121127,1728630656549,-500.0,0.00063287,120]
[340121128,1728630656559,-500.0,0.00063287,120]
[340121129,1728630656569,-669.94,0.00063287,120]
[340121130,1728630656579,-934.88,0.00063287,120]
[340121131,1728630656590,-500.0,0.00063287,120]
[340121132,1728630656601,-2257.7,0.00063287,30]
[340121133,1728630656611,-500.0,0.00063287,120]
[340121134,1728630656622,-500.0,0.00063287,120]
[340121135,1728630656631,-500.0,0.00063287,120]
[340121136,1728630656640,-500.0,0.00063287,120]
[340121137,1728630656649,-500.0,0.00063287,7]
[340121138,1728630656659,-500.0,0.00063287,120]
[340121139,1728630656669,-500.0,0.00063287,120]
[340121140,1728630656678,-1878.48,0.00063287,120]
[340121141,1728630656689,-512.79281856,0.00063287,120]
[340121142,1728630656748,-500.0,0.00063287,120]
[340121143,1728630656758,-500.0,0.00063287,120]
[340121144,1728630656768,-500.0,0.00063287,2]
[340121145,1728630656778,-500.0,0.00063287,120]
[340121146,1728630656788,-1334.39,0.00063287,120]
[340121147,1728630656798,-4210.56,0.00063287,120]
[340121148,1728630656808,-500.0,0.00063287,120]
[340121149,1728630656817,-500.0,0.00063287,120]
[340121150,1728630656828,-401.02242585,0.00063287,120]
[340121151,1728630656837,-427.65890068,0.00063287,120]
[340121152,1728630656845,-813.36,0.00063287,120]
[340121153,1728630656855,-500.0,0.00063287,120]
[340121154,1728630656865,-500.0,0.00063287,120]
[340121155,1728630656877,-500.0,0.00063287,120]
[340121156,1728630656887,-500.0,0.00063287,18]
[340121157,1728630656898,-1181.92,0.00063287,120]
[340121158,1728630656907,-689.37,0.00063287,120]
[340121159,1728630656917,-1220.56,0.00063287,120]
[340121160,1728630656928,-500.0,0.00063287,120]
[340121161,1728630656940,-500.0,0.00063287,30]
[340121162,1728630656949,-825.98,0.00063287,120]
[340121163,1728630656959,-500.0,0.00063287,120]
[340121164,1728630656970,-500.0,0.00063287,120]
[340121165,1728630656982,-500.0,0.00063287,120]
[340121166,1728630656992,-500.0,0.00063287,120]
[340121167,1728630657005,-500.0,0.00063287,120]
[340121168,1728630657016,-748.85,0.00063287,120]
[340121169,1728630657026,-1358.21,0.00063287,120]
[340121170,1728630657037,-500.0,0.00063287,120]
[340121171,1728630657047,-1932.27,0.00063287,120]
[340121172,1728630657056,-500.0,0.00063287,120]
[340121173,1728630657067,-746.7,0.00063287,120]
[340121174,1728630657077,-690.38,0.00063287,120]
[340121175,1728630657086,-1417.72,0.00063287,120]
[340121176,1728630657096,-518.65302414,0.00063287,120]
[340121177,1728630657106,-500.0,0.00063287,120]
[340121178,1728630657116,-500.0,0.00063287,120]
[340121179,1728630657125,-2183.44,0.00063287,120]
[340121180,1728630657136,-500.0,0.00063287,120]
[340121181,1728630657147,-558.97,0.00063287,120]
[340121182,1728630657158,-326.55188656,0.00063287,120]
[340121183,1728630657168,-500.0,0.00063287,120]
[340121184,1728630657183,-509.9485767,0.00063287,120]
[340121185,1728630657204,-500.0,0.00063287,120]
[340121186,1728630657224,-500.0,0.00063287,120]
[340121187,1728630657245,-1914.69,0.00063287,120]
[340121188,1728630657267,-2189.2,0.00063287,120]
[340121189,1728630657285,-1059.16,0.00063287,120]
[340121190,1728630657305,-500.0,0.00063287,120]
[340121191,1728630657320,-500.0,0.00063287,120]
[340121192,1728630657336,-500.0,0.00063287,120]
[340121193,1728630657356,-500.0,0.00063287,120]
[340121194,1728630657379,-500.0,0.00063287,120]
[340121195,1728630657393,-500.0,0.00063287,120]
[340121196,1728630657410,-500.0,0.00063287,30]
[340121197,1728630657430,-1638.11,0.00063287,120]
[340121198,1728630657449,-2460.61,0.00063287,120]
[340121199,1728630657465,-761.71,0.00063287,120]
[340121200,1728630657480,-543.70259031,0.00063287,120]
[340121201,1728630657494,-500.0,0.00063287,2]
[340121202,1728630657508,-500.0,0.00063287,120]
[340121203,1728630657522,-500.0,0.00063287,120]
[340121204,1728630657535,-500.0,0.00063287,120]
[340121205,1728630657549,-500.0,0.00063287,120]
[340121206,1728630657565,-3378.04,0.00063287,120]
[340121207,1728630657581,-2956.22,0.00063287,18]
[340121208,1728630657597,-500.0,0.00063287,30]
[340121209,1728630657612,-794.83,0.00063287,120]
[340121210,1728630657629,-500.0,0.00063287,7]
[340121211,1728630657644,-500.0,0.00063287,120]
[340121212,1728630657659,-5039.97,0.00063287,120]
[340121213,1728630657672,-500.0,0.00063287,2]
[340121214,1728630657686,-344.51430348,0.00063287,5]
[340121215,1728630657701,-500.60127494,0.00063287,7]
[340121216,1728630657717,-500.0,0.00063287,120]
[340121217,1728630657731,-1000.0,0.00063287,120]
[340121218,1728630657748,-500.0,0.00063287,120]
[340121219,1728630657763,-323.12113153,0.00063287,120]
[340121220,1728630657778,-500.0,0.00063287,120]
[340121221,1728630657792,-2873.27,0.00063287,120]
[340121222,1728630657807,-888.0,0.00063287,120]
[340121223,1728630657823,-711.759636,0.00063287,120]
[340121224,1728630657839,-1000.0,0.00063287,120]
[340121225,1728630657854,-711.759636,0.00063287,120]
[340121226,1728630657942,-316.32847785,0.00063287,2]
[340121227,1728630657952,-958.81,0.00063287,120]
[340121228,1728630657962,-502.94741539,0.00063287,120]
[340121229,1728630657971,-500.0,0.00063287,30]
[340121230,1728630657981,-1000.0,0.00063287,5]
[340121231,1728630657990,-500.0,0.00063287,120]
[340121232,1728630658000,-300.0,0.00063287,120]
[340121233,1728630658009,-777.64,0.00063287,120]
[340121234,1728630658019,-151.0,0.00063287,120]
[340121235,1728630658028,-500.0,0.00063287,120]
[340121236,1728630658037,-522.81,0.00063287,120]
[340121237,1728630658046,-500.0,0.00063287,2]
[340121238,1728630658055,-151.0,0.00063287,120]
[340121239,1728630658065,-4031.23290325,0.00063325,120]
[340121240,1728630658075,-1000.0,0.00063368,120]
[340121241,1728630658086,-12680.10585495,0.000634,2]
[340121242,1728630658095,-386.0,0.0006343,120]
[340121243,1728630658104,-1000.0,0.000635,120]
[340121244,1728630658113,-300.0,0.000635,58]
[340121245,1728630658122,-500.0,0.00063561,120]
[340121246,1728630658133,-500.0,0.00063561,120]
[340121247,1728630658145,-845.14,0.00063561,120]
[340121248,1728630658154,-1317.67,0.00063561,120]
[340121249,1728630658164,-500.0,0.00063561,120]
[340121250,1728630658174,-1566.82,0.00063561,120]
[340121251,1728630658184,-1563.53,0.00063561,7]
[340121252,1728630658193,-500.0,0.00063561,120]
[340121253,1728630658202,-500.0,0.00063561,10]
[340121254,1728630658213,-500.0,0.00063561,120]
[340121255,1728630658222,-500.0,0.00063561,120]
[340121256,1728630658231,-500.0,0.00063561,120]
[340121257,1728630658241,-500.0,0.00063561,120]
[340121258,1728630658250,-524.70890993,0.00063561,120]
[340121259,1728630658259,-500.0,0.00063561,120]
[340121260,1728630658268,-500.0,0.00063561,120]
[340121261,1728630658277,-1471.82,0.00063561,120]
[340121262,1728630658286,-500.0,0.00063561,120]
[340121263,1728630658296,-514.3607735,0.00063561,120]
[340121264,1728630658305,-500.0,0.00063561,120]
[340121265,1728630658315,-500.0,0.00063561,120]
[340121266,1728630658326,-500.0,0.00063561,120]
[340121267,1728630658344,-500.0,0.00063561,120]
[340121268,1728630658353,-500.0,0.00063561,120]
[340121269,1728630658363,-534.44,0.00063561,120]
[340121270,1728630658372,-500.0,0.00063561,120]
[340121271,1728630658382,-500.0,0.00063561,120]
[340121272,1728630658391,-600.24295829,0.00063561,120]
[340121273,1728630658402,-500.0,0.00063561,120]
[340121274,1728630658411,-220.92329647,0.00063561,120]
[340121275,1728630658420,-500.0,0.00063561,120]
[340121276,1728630658431,-681.48,0.00063561,120]
[340121277,1728630658440,-500.0,0.00063561,2]
[340121278,1728630658450,-500.0,0.00063561,120]
[340121279,1728630658459,-500.0,0.00063561,120]
[340121280,1728630658469,-500.0,0.00063561,120]
[340121281,1728630658478,-500.0,0.00063561,120]
[340121282,1728630658488,-1399.61,0.00063561,120]
[340121283,1728630658497,-650.96,0.00063561,2]
[340121284,1728630658507,-500.0,0.00063561,120]
[340121285,1728630658516,-500.0,0.00063561,120]
[340121286,1728630658526,-1996.76,0.00063561,120]
[340121287,1728630658535,-500.0,0.00063561,120]
[340121288,1728630658544,-1351.2,0.00063561,2]
[340121289,1728630658553,-2436.48,0.00063561,30]
[340121290,1728630658563,-500.0,0.00063561,120]
[340121291,1728630658575,-610.43170277,0.00063561,120]
[340121292,1728630658586,-683.8,0.00063561,120]
[340121293,1728630658595,-369.88903063,0.00063561,120]
[340121294,1728630658605,-500.0,0.00063561,120]
[340121295,1728630658614,-500.0,0.00063561,120]
[340121296,1728630658623,-500.0,0.00063561,120]
[340121297,1728630658632,-594.90754197,0.00063561,120]
[340121298,1728630658641,-500.0,0.00063561,120]
[340121299,1728630658650,-500.0,0.00063561,120]
[340121300,1728630658659,-1950.95,0.00063561,120]
[340121301,1728630658669,-500.0,0.00063561,120]
[340121302,1728630658678,-500.0,0.00063561,120]
[340121303,1728630658688,-5150.52,0.00063561,120]
[340121304,1728630658697,-500.0,0.00063561,120]
[340121305,1728630658707,-500.0,0.00063561,120]
[340121306,1728630658716,-500.0,0.00063561,120]
[340121307,1728630658726,-500.0,0.00063561,120]
[340121308,1728630658736,-500.0,0.00063561,120]
[340121309,1728630658748,-500.0,0.00063561,120]
[340121310,1728630658760,-669.94,0.00063561,120]
[340121311,1728630658771,-934.88,0.00063561,120]
[340121312,1728630658782,-500.0,0.00063561,120]
[340121313,1728630658793,-2257.7,0.00063561,30]
[340121314,1728630658803,-500.0,0.00063561,120]
[340121315,1728630658813,-500.0,0.00063561,120]
[340121316,1728630658825,-500.0,0.00063561,120]
[340121317,1728630658836,-500.0,0.00063561,120]
[340121318,1728630658846,-500.0,0.00063561,7]
[340121319,1728630658858,-500.0,0.00063561,120]
[340121320,1728630658870,-500.0,0.00063561,120]
[340121321,1728630658880,-1878.48,0.00063561,120]
[340121322,1728630658891,-500.0,0.00063561,120]
[340121323,1728630658902,-500.0,0.00063561,120]
[340121324,1728630658913,-500.0,0.00063561,2]
[340121325,1728630658924,-500.0,0.00063561,120]
[340121326,1728630658933,-1334.39,0.00063561,120]
[340121327,1728630658943,-4210.56,0.00063561,120]
[340121328,1728630658952,-500.0,0.00063561,120]
[340121329,1728630658962,-500.0,0.00063561,120]
[340121330,1728630658971,-813.36,0.00063561,120]
[340121331,1728630658980,-500.0,0.00063561,120]
[340121332,1728630658990,-500.0,0.00063561,120]
[340121333,1728630659000,-567.71408014,0.00063561,120]
[340121334,1728630659010,-500.0,0.00063561,18]
[340121335,1728630659019,-1181.92,0.00063561,120]
[340121336,1728630659029,-689.37,0.00063561,120]
[340121337,1728630659038,-1220.56,0.00063561,120]
[340121338,1728630659047,-543.31983847,0.00063561,120]
[340121339,1728630659056,-500.0,0.00063561,30]
[340121340,1728630659066,-825.98,0.00063561,120]
[340121341,1728630659077,-500.0,0.00063561,120]
[340121342,1728630659087,-516.59470199,0.00063561,120]
[340121343,1728630659154,-500.0,0.00063561,120]
[340121344,1728630659163,-500.0,0.00063561,120]
[340121345,1728630659173,-500.0,0.00063561,120]
[340121346,1728630659184,-748.85,0.00063561,120]
[340121347,1728630659194,-1358.21,0.00063561,120]
[340121348,1728630659203,-500.0,0.00063561,120]
[340121349,1728630659213,-1932.27,0.00063561,120]
[340121350,1728630659223,-243.74711926,0.00063561,120]
[340121351,1728630659232,-746.7,0.00063561,120]
[340121352,1728630659243,-690.38,0.00063561,120]
[340121353,1728630659252,-1417.72,0.00063561,120]
[340121354,1728630659263,-500.0,0.00063561,120]
[340121355,1728630659273,-460.00779958,0.00063561,120]
[340121356,1728630659285,-2183.44,0.00063561,120]
[340121357,1728630659296,-500.0,0.00063561,120]
[340121358,1728630659307,-558.97,0.00063561,120]
[340121359,1728630659317,-500.0,0.00063561,120]
[340121360,1728630659330,-539.57214462,0.00063561,120]
[340121361,1728630659340,-168.83320558,0.00063561,120]
[340121362,1728630659350,-1914.69,0.00063561,120]
[340121363,1728630659360,-2189.2,0.00063561,120]
[340121364,1728630659371,-1059.16,0.00063561,120]
[340121365,1728630659381,-500.0,0.00063561,120]
[340121366,1728630659393,-500.0,0.00063561,120]
[340121367,1728630659403,-500.0,0.00063561,120]
[340121368,1728630659413,-405.98768547,0.00063561,120]
[340121369,1728630659422,-500.0,0.00063561,120]
[340121370,1728630659432,-500.0,0.00063561,120]
[340121371,1728630659443,-500.0,0.00063561,30]
[340121372,1728630659452,-1638.11,0.00063561,120]
[340121373,1728630659462,-2460.61,0.00063561,120]
[340121374,1728630659472,-761.71,0.00063561,120]
[340121375,1728630659482,-500.0,0.00063561,2]
[340121376,1728630659491,-500.0,0.00063561,120]
[340121377,1728630659501,-340.96319717,0.00063561,120]
[340121378,1728630659511,-154.33,0.00063561,120]
[340121379,1728630659520,-190.77910283,0.00063561,120]
[340121380,1728630659530,-3378.04,0.00063561,120]
[340121381,1728630659539,-2956.22,0.00063561,18]
[340121382,1728630659548,-500.0,0.00063561,30]
[340121383,1728630659558,-794.83,0.00063561,120]
[340121384,1728630659567,-500.0,0.00063561,7]
[340121385,1728630659578,-500.0,0.00063561,120]
[340121386,1728630659587,-5039.97,0.00063561,120]
[340121387,1728630659596,-500.0,0.00063561,2]
[340121388,1728630659606,-500.0,0.00063561,120]
[340121389,1728630659615,-1000.0,0.00063561,120]
[340121390,1728630659625,-500.0,0.00063561,120]
[340121391,1728630659635,-500.0,0.00063561,120]
[340121392,1728630659644,-2873.27,0.00063561,120]
[340121393,1728630659654,-888.0,0.00063561,120]
[340121394,1728630659663,-711.759636,0.00063561,120]
[340121395,1728630659673,-1000.0,0.00063561,120]
[340121396,1728630659683,-711.759636,0.00063561,120]
[340121397,1728630659694,-958.81,0.00063561,120]
[340121398,1728630659704,-500.0,0.00063561,30]
[340121399,1728630659715,-1000.0,0.00063561,5]
[340121400,1728630659724,-500.0,0.00063561,120]
[340121401,1728630659734,-300.0,0.00063561,120]
[340121402,1728630659743,-777.64,0.00063561,120]
[340121403,1728630659753,-151.0,0.00063561,120]
[340121404,1728630659762,-500.0,0.00063561,120]
[340121405,1728630659772,-522.81,0.00063561,120]
[340121406,1728630659782,-500.0,0.00063561,2]
[340121407,1728630659791,-151.0,0.00063561,120]
[340121408,1728630659802,-187.0,0.0006364,14]
[340121409,1728630659811,-500.0,0.00063835,120]
[340121410,1728630659820,-260.63234264,0.00063835,120]
[340121411,1728630659831,-845.14,0.00063835,120]
[340121412,1728630659841,-1317.67,0.00063835,120]
[340121413,1728630659850,-500.0,0.00063835,120]
[340121414,1728630659860,-1566.82,0.00063835,120]
[340121415,1728630659869,-1563.53,0.00063835,7]
[340121416,1728630659879,-500.0,0.00063835,120]
[340121417,1728630659889,-598.79976787,0.00063835,10]
[340121418,1728630659901,-500.0,0.00063835,120]
[340121419,1728630659911,-500.0,0.00063835,120]
[340121420,1728630659921,-500.0,0.00063835,120]
[340121421,1728630659930,-500.0,0.00063835,120]
[340121422,1728630659939,-505.47334528,0.00063835,120]
[340121423,1728630659949,-580.46678547,0.00063835,120]
[340121424,1728630659959,-1471.82,0.00063835,120]
[340121425,1728630659969,-500.0,0.00063835,120]
[340121426,1728630659979,-500.0,0.00063835,120]
[340121427,1728630659988,-500.0,0.00063835,120]
[340121428,1728630659997,-500.0,0.00063835,120]
[340121429,1728630660007,-563.78839809,0.00063835,120]
[340121430,1728630660016,-184.88,0.00063835,120]
[340121431,1728630660026,-534.44,0.00063835,120]
[340121432,1728630660035,-500.0,0.00063835,120]
[340121433,1728630660045,-500.0,0.00063835,120]
[340121434,1728630660055,-500.0,0.00063835,120]
[340121435,1728630660064,-500.0,0.00063835,120]
[340121436,1728630660075,-681.48,0.00063835,120]
[340121437,1728630660086,-500.0,0.00063835,2]
[340121438,1728630660096,-500.0,0.00063835,120]